bitfinex-derivatives/quotes_BTCF0:USTF0_20241214
["timestamp","ask_amount","ask_price","bid_price","bid_amount"]
[1734191569028,0.47110299,101640.0,101630.0,0.049194]
[1734191569527,0.47110299,101640.0,101630.0,0.22538988]
[1734191570133,0.47110299,101640.0,101630.0,0.049194]
[1734191570627,0.47110299,101640.0,101630.0,0.22538988]
[1734191571126,0.11030299,101640.0,101630.0,0.22538988]
[1734191571331,0.47110299,101640.0,101630.0,0.22538988]
[1734191571726,0.409991,101640.0,101630.0,0.28650187]
[1734191572427,0.409991,101640.0,101630.0,0.52149942]
[1734191572828,0.049191,101640.0,101630.0,0.52149942]
[1734191573131,0.19665679,101640.0,101630.0,0.70610354]
[1734191573326,0.19665679,101640.0,101630.0,2.23760354]
[1734191573528,0.19665679,101640.0,101630.0,2.53142653]
[1734191573725,0.19665679,101640.0,101630.0,2.7667741]
[1734191573925,0.19665679,101640.0,101630.0,2.53142653]
[1734191574435,0.19665679,101640.0,101630.0,2.76666001]
[1734191578735,0.049191,101640.0,101630.0,2.53166246]
[1734191580929,0.049191,101640.0,101630.0,2.53172613]
[1734191581335,0.19665679,101640.0,101630.0,2.53172613]
[1734191582137,0.049191,101640.0,101630.0,2.53172613]
[1734191584142,0.19665679,101640.0,101630.0,2.53172613]
[1734191584339,0.049191,101640.0,101630.0,2.53172613]
[1734191585034,0.19665679,101640.0,101630.0,2.53172613]
[1734191585229,0.049191,101640.0,101630.0,2.53172613]
[1734191586344,0.19665679,101640.0,101630.0,2.53172613]
[1734191586738,0.049191,101640.0,101630.0,2.53172613]
[1734191587136,0.049191,101640.0,101630.0,0.93911414]
[1734191587341,0.082091,101640.0,101630.0,1.00022613]
[1734191587737,0.082091,101640.0,101630.0,2.50022613]
[1734191589350,0.082091,101640.0,101630.0,2.13942613]
[1734191589542,0.22955679,101640.0,101630.0,2.50022613]
[1734191589845,0.082091,101640.0,101630.0,2.50022613]
[1734191590147,0.049191,101640.0,101630.0,2.50022613]
[1734191590948,0.19665679,101640.0,101630.0,2.50022613]
[1734191592351,0.049191,101640.0,101630.0,2.50022613]
[1734191593759,0.049191,101640.0,101630.0,2.13942613]
[1734191593971,0.19665679,101640.0,101630.0,2.73648136]
[1734191594156,0.19665679,101640.0,101630.0,2.50148179]
[1734191594561,0.19665679,101640.0,101630.0,2.7364906]
[1734191594756,0.19665679,101640.0,101630.0,2.50148179]
[1734191595066,0.049191,101640.0,101630.0,2.50148179]
[1734191596065,0.049191,101640.0,101630.0,1.00148179]
[1734191596563,0.049191,101640.0,101630.0,2.50148179]
[1734191596761,0.19665679,101640.0,101630.0,2.50148179]
[1734191597360,0.049191,101640.0,101630.0,2.50148179]
[1734191598059,0.049191,101640.0,101630.0,2.50128644]
[1734191600065,0.049191,101640.0,101630.0,2.14048644]
[1734191600270,0.049191,101640.0,101630.0,2.50128644]
[1734191600461,0.19665679,101640.0,101630.0,2.50128644]
[1734191602466,0.19665679,101640.0,101630.0,2.50111402]
[1734191603066,0.31470668,101640.0,101630.0,2.50111402]
[1734191603374,0.19665679,101640.0,101630.0,2.50111402]
[1734191603666,0.19665679,101640.0,101630.0,2.50114847]
[1734191608870,0.19665679,101640.0,101630.0,1.00114847]
[1734191609473,0.19665679,101640.0,101630.0,2.50114847]
[1734191609877,0.19665679,101640.0,101630.0,2.44003648]
[1734191610168,0.19665679,101640.0,101630.0,2.14034847]
[1734191610776,0.19665679,101640.0,101630.0,2.50114847]
[1734191611376,0.19665679,101640.0,101630.0,2.50199813]
[1734191611573,0.19665679,101640.0,101630.0,2.44088614]
[1734191611779,0.19665679,101640.0,101630.0,2.50199813]
[1734191615876,0.19665679,101640.0,101630.0,2.50191925]
[1734191616675,0.19665679,101640.0,101630.0,2.14111925]
[1734191616880,0.19665679,101640.0,101630.0,2.50191925]
[1734191620482,0.19665679,101640.0,101630.0,2.14111925]
[1734191620683,0.19665679,101640.0,101630.0,2.50191925]
[1734191622381,0.19665679,101640.0,101630.0,2.14111925]
[1734191622586,0.19665679,101640.0,101630.0,2.50191925]
[1734191623283,0.11804924,101640.0,101630.0,1.41499798]
[1734191623787,0.11804924,101640.0,101630.0,2.62095098]
[1734191625291,0.11804924,101640.0,101630.0,2.91491762]
[1734191625588,0.11804924,101640.0,101630.0,2.79269364]
[1734191625790,0.11804924,101640.0,101630.0,2.85380563]
[1734191627387,0.11804924,101640.0,101630.0,2.5020629]
[1734191628795,0.11804924,101640.0,101630.0,2.85380563]
[1734191629101,0.11804924,101640.0,101630.0,2.85362585]
[1734191629483,0.11804924,101640.0,101630.0,2.50188312]
[1734191634116,0.11804924,101640.0,101630.0,2.56299511]
[1734191636109,0.16723724,101650.0,101630.0,2.91473784]
[1734191636412,0.16723724,101650.0,101640.0,1.06122446]
[1734191636613,0.16723724,101650.0,101640.0,1.06241315]
[1734191636908,0.11804924,101650.0,101640.0,2.62351827]
[1734191637108,0.11804924,101650.0,101640.0,2.72121827]
[1734191637304,0.31519603,101660.0,101640.0,3.01184901]
[1734191637514,0.31519603,101660.0,101650.0,0.70610667]
[1734191637715,0.16773024,101660.0,101650.0,1.00000535]
[1734191637912,0.16723024,101660.0,101650.0,1.00000535]
[1734191638310,0.16723024,101660.0,101650.0,0.70610667]
[1734191639117,0.16773024,101660.0,101650.0,0.70610667]
[1734191640916,0.16723024,101660.0,101650.0,0.70610667]
[1734191642419,0.16723024,101660.0,101650.0,0.34530667]
[1734191642625,0.16723024,101660.0,101650.0,0.52144578]
[1734191644321,0.16723024,101660.0,101650.0,0.5311148]
[1734191649222,0.16723024,101660.0,101650.0,0.35497569]
[1734191649419,0.16723024,101660.0,101650.0,0.53117405]
[1734191649621,0.16723024,101660.0,101650.0,0.35497569]
[1734191649823,0.16723024,101660.0,101650.0,0.53117435]
[1734191650025,0.16723024,101660.0,101650.0,0.35497569]
[1734191650423,0.16723024,101660.0,101650.0,1.85497569]
[1734191651332,0.31469603,101660.0,101650.0,1.85497569]
[1734191652120,0.31469603,101660.0,101650.0,2.03125506]
[1734191652723,0.31469603,101660.0,101650.0,1.85497569]
[1734191653030,0.31469603,101660.0,101650.0,1.97016574]
[1734191653327,0.31469603,101660.0,101650.0,1.85497569]
[1734191656029,0.31469603,101660.0,101650.0,1.7938637]
[1734191656334,0.34519603,101660.0,101650.0,1.85497569]
[1734191657126,0.22714679,101660.0,101650.0,1.85497569]
[1734191657427,0.34504687,101660.0,101650.0,1.85497569]
[1734191657826,0.34504687,101660.0,101650.0,2.03129549]
[1734191658248,0.22714679,101660.0,101650.0,1.85497569]
[1734191665330,0.22714679,101660.0,101650.0,2.14887437]
[1734191666236,0.22714679,101660.0,101650.0,2.38524509]
[1734191666433,0.22714679,101660.0,101650.0,2.38525589]
[1734191669335,0.22714679,101660.0,101650.0,2.3241439]
[1734191669536,0.22714679,101660.0,101650.0,2.38525589]
[1734191670239,0.22714679,101660.0,101650.0,2.3241439]
[1734191670544,0.22714679,101660.0,101650.0,2.38525589]
[1734191671032,0.22714679,101660.0,101650.0,2.38561158]
[1734191672139,0.22714679,101660.0,101650.0,2.1506029]
[1734191679541,0.22714679,101660.0,101650.0,2.1506646]
[1734191683451,0.22714679,101660.0,101650.0,2.08955261]
[1734191683650,0.22714679,101660.0,101650.0,2.1506646]
[1734191684444,0.22714679,101660.0,101650.0,2.04036661]
[1734191684445,0.28825878,101660.0,101650.0,2.04036661]
[1734191684647,0.28825878,101660.0,101650.0,2.27578813]
[1734191687643,0.28825878,101660.0,101650.0,2.38608612]
[1734191687851,0.22714679,101660.0,101650.0,2.14928721]
[1734191688051,0.22714679,101660.0,101650.0,2.3868401]
[1734191688261,0.22714679,101660.0,101650.0,2.38683714]
[1734191688652,0.22714679,101660.0,101650.0,2.14928721]
[1734191688954,0.19664679,101660.0,101650.0,2.15111877]
[1734191689252,0.19664679,101660.0,101650.0,2.24911877]
[1734191693046,0.19664679,101660.0,101650.0,2.24857906]
[1734191697453,0.19664679,101660.0,101650.0,2.24836914]
[1734191699045,0.19664679,101660.0,101650.0,2.60916914]
[1734191702556,0.31466257,101660.0,101650.0,2.60916914]
[1734191702741,0.19664679,101660.0,101650.0,2.60916914]
[1734191702945,0.31466261,101660.0,101650.0,2.60916914]
[1734191703149,0.31466175,101660.0,101650.0,2.60916914]
[1734191703357,0.19664679,101660.0,101650.0,2.60916914]
[1734191703559,0.3146546,101660.0,101650.0,2.60916914]
[1734191705754,0.2654736,101660.0,101650.0,2.60916914]
[1734191709647,0.2654736,101660.0,101650.0,2.60900478]
[1734191710861,0.11800781,101660.0,101650.0,2.67011677]
[1734191711055,0.11800781,101660.0,101650.0,2.60900478]
[1734191711957,0.11800781,101660.0,101650.0,2.54789279]
[1734191712155,0.11800781,101660.0,101650.0,2.60900478]
[1734191712361,0.20648097,101660.0,101650.0,2.96074751]
[1734191712659,0.11800781,101660.0,101650.0,2.60900478]
[1734191713154,0.20647597,101660.0,101650.0,2.96074751]
[1734191713352,0.20647597,101660.0,101650.0,2.66684883]
[1734191713554,0.20647597,101660.0,101650.0,2.96105279]
[1734191714247,0.20647597,101660.0,101650.0,2.96146207]
[1734191714649,0.20647597,101660.0,101650.0,2.60971934]
[1734191714850,0.20647597,101660.0,101650.0,2.96146207]
[1734191715057,0.20647597,101660.0,101650.0,2.60971934]
[1734191715462,0.11800781,101660.0,101650.0,2.60971934]
[1734191716056,0.11800781,101660.0,101650.0,2.54860735]
[1734191716360,0.11800781,101660.0,101650.0,2.60971934]
[1734191718279,0.2654736,101660.0,101650.0,2.60971934]
[1734191718464,0.2283008,101660.0,101650.0,2.09055706]
[1734191718657,0.28995878,101660.0,101650.0,2.08856934]
[1734191718857,0.28995878,101660.0,101650.0,1.79436538]
[1734191719867,0.28995878,101660.0,101650.0,1.85547737]
[1734191720567,0.28995878,101660.0,101650.0,1.79436538]
[1734191720756,0.28995878,101660.0,101650.0,1.85547737]
[1734191721661,0.28995878,101660.0,101650.0,1.79436538]
[1734191721865,0.28995878,101660.0,101650.0,1.85547737]
[1734191725860,0.22884679,101660.0,101650.0,1.85547737]
[1734191726060,0.28995878,101660.0,101650.0,1.85547737]
[1734191731555,1.01187077,101660.0,101650.0,0.41217146]
[1734191731858,1.47558753,101660.0,101650.0,0.41217146]
[1734191732063,1.32812174,101660.0,101650.0,0.1766611]
[1734191732869,1.32812174,101660.0,101640.0,1.92214305]
[1734191733067,1.26700975,101660.0,101650.0,0.1766611]
[1734191733370,1.62780975,101660.0,101650.0,0.1766611]
[1734191733569,0.049186,101650.0,101640.0,1.91217146]
[1734191733873,0.55735939,101650.0,101640.0,1.91217146]
[1734191734669,0.55735939,101650.0,101640.0,1.73551036]
[1734191734874,0.55735939,101650.0,101640.0,1.91209774]
[1734191735171,0.61847138,101650.0,101640.0,1.67658738]
[1734191737469,0.61847138,101650.0,101640.0,1.5]
[1734191737863,0.90507138,101650.0,101640.0,1.5]
[1734191740784,0.61847138,101650.0,101640.0,1.5]
[1734191742068,0.55735939,101650.0,101640.0,1.5]
[1734191742367,0.61847138,101650.0,101640.0,1.5]
[1734191744663,0.47109799,101650.0,101640.0,1.5]
[1734191745474,0.61827966,101650.0,101640.0,1.5]
[1734191746076,0.67939165,101650.0,101640.0,1.5]
[1734191746272,0.61827966,101650.0,101640.0,1.5]
[1734191746468,0.61827966,101650.0,101630.0,0.18665976]
[1734191746671,0.22805532,101640.0,101630.0,0.18665976]
[1734191747075,0.22805532,101640.0,101630.0,1.68615976]
[1734191747970,0.28916731,101640.0,101630.0,1.68615976]
[1734191748175,0.28916731,101640.0,101630.0,1.68665976]
[1734191750183,0.28916731,101640.0,101630.0,1.74895976]
[1734191751972,0.29892381,101640.0,101630.0,1.74895976]
[1734191754284,0.28916731,101640.0,101630.0,1.74895976]
[1734191754494,0.28916731,101640.0,101630.0,1.78085976]
[1734191755175,0.16694333,101640.0,101630.0,1.78085976]
[1734191755575,0.22805532,101640.0,101630.0,1.78085976]
[1734191756581,0.22805532,101640.0,101630.0,2.01611407]
[1734191756886,0.16694333,101640.0,101630.0,2.01611407]
[1734191757080,0.28916731,101640.0,101630.0,2.01611407]
[1734191757583,0.43634898,101640.0,101630.0,2.01611407]
[1734191759679,0.31859665,101640.0,101630.0,2.01611407]
[1734191760683,0.31859665,101640.0,101630.0,1.83967334]
[1734191763083,0.31859665,101640.0,101630.0,1.88886934]
[1734191764787,0.31859665,101640.0,101630.0,2.41833647]
[1734191764788,0.49521465,101640.0,101630.0,2.41833647]
[1734191766686,0.49521465,101640.0,101630.0,2.18293723]
[1734191766985,0.49521465,101640.0,101630.0,2.41831783]
[1734191768684,0.37299067,101640.0,101630.0,2.41831783]
[1734191769086,0.43410266,101640.0,101630.0,2.18306352]
[1734191769884,0.25748466,101640.0,101630.0,2.18306352]
[1734191771185,0.31859665,101640.0,101630.0,2.18306352]
[1734191771384,0.25748466,101640.0,101630.0,2.18306352]
[1734191774494,0.31859665,101640.0,101630.0,2.18306352]
[1734191774988,0.25748466,101640.0,101630.0,2.18306352]
[1734191777485,0.19637267,101640.0,101630.0,2.18306352]
[1734191777684,0.25748466,101640.0,101630.0,0.62414849]
[1734191777886,0.67939665,101640.0,101630.0,0.59224849]
[1734191778195,0.70883298,101640.0,101630.0,0.29869406]
[1734191780791,0.70883298,101640.0,101630.0,0.23589406]
[1734191781000,0.76973298,101640.0,101630.0,0.41279925]
[1734191781497,0.76973298,101640.0,101630.0,0.17690519]
[1734191785992,0.647509,101640.0,101630.0,0.17690519]
[1734191786193,0.76973298,101640.0,101630.0,0.17690519]
[1734191789304,0.647509,101640.0,101630.0,0.17690519]
[1734191789608,0.76973298,101640.0,101630.0,0.17690519]
[1734191791708,0.80123298,101640.0,101630.0,0.17690519]
[1734191791900,0.80123298,101640.0,101620.0,1.92284073]
[1734191792204,0.61856765,101630.0,101620.0,1.92284073]
[1734191792509,0.61856765,101630.0,101620.0,1.92275884]
[1734191792804,0.61856765,101630.0,101620.0,1.74593554]
[1734191793499,0.61856765,101630.0,101620.0,1.92274848]
[1734191794405,0.61856765,101630.0,101620.0,1.74593554]
[1734191794604,0.61856765,101630.0,101620.0,1.92274802]
[1734191794797,0.61856765,101630.0,101620.0,1.74593554]
[1734191795298,0.61856765,101630.0,101620.0,1.73589406]
[1734191795506,0.61856765,101630.0,101620.0,1.91270468]
[1734191796906,0.61856765,101630.0,101620.0,1.91269878]
[1734191797503,0.62821396,101630.0,101620.0,1.91269878]
[1734191798897,0.62821396,101630.0,101620.0,1.73589406]
[1734191799101,0.62821396,101630.0,101620.0,0.23589406]
[1734191799609,0.62821396,101630.0,101620.0,0.41271342]
[1734191801208,0.68932595,101630.0,101620.0,0.41271342]
[1734191801616,0.86594395,101630.0,101620.0,0.17681936]
[1734191802610,0.86592573,101630.0,101620.0,0.17681936]
[1734191803117,0.71848429,101630.0,101620.0,0.17681936]
[1734191804405,0.6573723,101630.0,101620.0,0.17681936]
[1734191807511,0.71848429,101630.0,101620.0,0.17681936]
[1734191808815,0.59626031,101630.0,101620.0,0.17681936]
[1734191809016,0.6573723,101630.0,101620.0,0.17681936]
[1734191811308,0.586614,101630.0,101620.0,0.17681936]
[1734191811512,0.79518452,101630.0,101620.0,0.41271342]
[1734191811713,0.43438452,101630.0,101620.0,0.41271342]
[1734191811913,0.25776652,101630.0,101620.0,0.41271342]
[1734191812119,0.14745853,101630.0,101620.0,0.76811804]
[1734191812320,0.1179565,101630.0,101620.0,1.29632262]
[1734191812517,0.1179565,101630.0,101620.0,0.99931657]
[1734191812718,0.1179565,101630.0,101620.0,2.49931657]
[1734191813022,0.20641597,101630.0,101620.0,2.49931657]
[1734191813412,0.1179565,101630.0,101620.0,2.49931657]
[1734191813719,0.2064087,101630.0,101620.0,2.49931657]
[1734191815412,0.31671669,101630.0,101620.0,2.49931657]
[1734191815612,0.2556047,101630.0,101620.0,2.49931657]
[1734191815834,0.2064087,101630.0,101620.0,2.49931657]
[1734191817124,0.0884522,101630.0,101620.0,2.49931657]
[1734191821024,0.0884522,101630.0,101620.0,2.56042856]
[1734191822126,0.0884522,101630.0,101620.0,2.56003282]
[1734191826630,0.0884522,101630.0,101620.0,2.55994592]
[1734191827525,0.0884522,101630.0,101620.0,2.79536812]
[1734191828019,0.2064087,101640.0,101630.0,0.049196]
[1734191828217,0.2064087,101640.0,101630.0,0.97628488]
[1734191828527,0.0884522,101640.0,101630.0,0.79972336]
[1734191828728,0.0884522,101640.0,101630.0,2.82737933]
[1734191829229,0.0884522,101640.0,101630.0,2.59379125]
[1734191829429,0.0884522,101640.0,101630.0,2.8275324]
[1734191829724,0.0884522,101640.0,101630.0,2.59379125]
[1734191829929,0.0884522,101640.0,101630.0,2.82752721]
[1734191830130,0.0884522,101640.0,101630.0,2.59379125]
[1734191830325,0.31670769,101650.0,101640.0,0.049191]
[1734191830530,0.31670769,101650.0,101640.0,0.58644706]
[1734191832033,0.22825549,101650.0,101640.0,0.58644706]
[1734191832335,0.31655429,101650.0,101640.0,0.58644706]
[1734191832634,0.22825549,101650.0,101640.0,0.58644706]
[1734191832827,0.31655619,101650.0,101640.0,0.58644706]
[1734191834225,0.31655216,101650.0,101640.0,0.58644706]
[1734191834531,0.22825549,101650.0,101640.0,0.58644706]
[1734191837228,0.22825549,101650.0,101640.0,0.59618443]
[1734191838627,0.22825549,101650.0,101640.0,0.8315998]
[1734191839439,0.61855752,101650.0,101640.0,0.23538443]
[1734191841529,0.61855752,101650.0,101640.0,0.4707998]
[1734191846536,0.79517552,101650.0,101640.0,0.4707998]
[1734191847136,0.61855752,101650.0,101640.0,0.4707998]
[1734191849339,0.79517552,101650.0,101640.0,0.4707998]
[1734191853355,0.61855752,101650.0,101640.0,0.4707998]
[1734191854143,0.64771699,101650.0,101640.0,0.4707998]
[1734191856247,0.64771699,101650.0,101640.0,0.29434374]
[1734191863357,0.64771699,101650.0,101640.0,0.4712385]
[1734191868368,0.64771699,101650.0,101640.0,0.47129731]
[1734191868658,0.64771699,101650.0,101640.0,0.47129717]
[1734191869053,0.64771699,101650.0,101640.0,0.4713103]
[1734191869255,0.64771699,101650.0,101640.0,0.29434374]
[1734191871452,0.64771699,101650.0,101640.0,0.47132873]
[1734191874467,0.64771699,101650.0,101640.0,0.29434374]
[1734191874657,0.176618,101650.0,101640.0,0.77736772]
[1734191874859,0.14757753,101650.0,101640.0,1.07180951]
[1734191875054,0.26563306,101650.0,101640.0,2.92469098]
[1734191875261,0.26563306,101650.0,101640.0,2.57180951]
[1734191875958,0.31481906,101650.0,101640.0,2.51069752]
[1734191876356,0.16724153,101650.0,101640.0,2.51069752]
[1734191876964,0.16724153,101650.0,101640.0,2.57180951]
[1734191877164,0.16724153,101650.0,101640.0,2.51069752]
[1734191879257,0.25569531,101650.0,101640.0,2.51069752]
[1734191882361,0.25569531,101650.0,101640.0,2.44958553]
[1734191882561,0.25569531,101650.0,101640.0,1.01069752]
[1734191882961,0.25569531,101650.0,101640.0,1.01023721]
[1734191883983,0.25569531,101650.0,101640.0,1.24578444]
[1734191884177,0.16724153,101650.0,101640.0,1.24578444]
[1734191884973,0.25564622,101650.0,101640.0,1.24578444]
[1734191886180,0.31675821,101650.0,101640.0,1.18467245]
[1734191886488,0.31675821,101650.0,101640.0,0.82374387]
[1734191886489,0.31675387,101650.0,101640.0,0.82374387]
[1734191886687,0.67755387,101650.0,101640.0,0.5885167]
[1734191886882,0.67755387,101650.0,101640.0,0.29444881]
[1734191887082,0.73673105,101650.0,101640.0,0.47113023]
[1734191887382,0.61867552,101650.0,101640.0,0.47113023]
[1734191888380,0.61867552,101650.0,101640.0,0.23560979]
[1734191888686,0.61867552,101650.0,101640.0,1.73560979]
[1734191890988,0.628699,101650.0,101640.0,1.73560979]
[1734191891981,0.68981099,101650.0,101640.0,1.67668142]
[1734191892483,0.86642899,101650.0,101640.0,0.17668142]
[1734191893191,0.805317,101650.0,101640.0,0.17668142]
[1734191894382,0.628699,101650.0,101640.0,0.17668142]
[1734191901393,0.55756353,101650.0,101640.0,0.17668142]
[1734191901588,0.79529352,101650.0,101640.0,0.17668142]
[1734191901790,0.61867552,101650.0,101640.0,0.17668142]
[1734191904389,0.55756353,101650.0,101640.0,0.22587242]
[1734191904589,0.61867552,101650.0,101640.0,0.22587242]
[1734191905794,0.25787552,101650.0,101640.0,0.58667242]
[1734191905993,0.37575355,101650.0,101640.0,0.82219286]
[1734191907895,0.37575355,101650.0,101640.0,0.64551144]
[1734191908099,0.31464156,101650.0,101640.0,0.70662343]
[1734191908292,0.31464156,101650.0,101640.0,1.29771943]
[1734191908293,0.20628646,101650.0,101640.0,1.29771943]
[1734191908696,0.20628646,101650.0,101640.0,2.50107138]
[1734191911001,0.20628646,101650.0,101640.0,2.56218337]
[1734191912594,0.20628646,101650.0,101640.0,2.50107138]
[1734191912905,0.20628646,101650.0,101640.0,2.50077866]
[1734191913298,0.08840843,101650.0,101640.0,2.50077866]
[1734191913499,0.08840843,101650.0,101640.0,2.56189065]
[1734191913699,0.20628646,101650.0,101640.0,2.56189065]
[1734191914999,0.08840843,101650.0,101640.0,2.56189065]
[1734191919407,0.11787803,101660.0,101640.0,1.36189065]
[1734191919704,0.67543356,101670.0,101650.0,0.56479799]
[1734191919903,0.67543356,101670.0,101660.0,2.02213071]
[1734191920203,0.52785603,101670.0,101660.0,1.78679487]
[1734191920404,0.52785603,101670.0,101660.0,2.02213071]
[1734191921112,0.16705603,101670.0,101660.0,2.20642883]
[1734191921411,0.16705603,101670.0,101660.0,2.38282546]
[1734191921708,0.16705603,101670.0,101660.0,2.20642883]
[1734191922501,0.16705603,101670.0,101660.0,1.78451684]
[1734191922701,0.58896802,101670.0,101660.0,0.46088244]
[1734191922903,0.61996802,101670.0,101660.0,0.46088244]
[1734191923999,0.61996802,101670.0,101660.0,0.2255466]
[1734191924814,0.25916802,101670.0,101660.0,0.2255466]
[1734191927304,0.61996802,101670.0,101660.0,0.23539502]
[1734191927613,0.25916802,101670.0,101660.0,0.23539502]
[1734191928210,0.61996802,101670.0,101660.0,0.23539502]
[1734191931712,0.65056802,101670.0,101660.0,0.23539502]
[1734191932314,0.65056802,101670.0,101660.0,0.47073086]
[1734191933211,0.65056802,101670.0,101660.0,0.41170144]
[1734191933406,0.79814555,101670.0,101660.0,0.1763656]
[1734191933618,0.68026752,101670.0,101660.0,0.1763656]
[1734191934223,0.049181,101660.0,101650.0,0.41185134]
[1734191934522,0.83008401,101660.0,101650.0,0.41185134]
[1734191934723,0.83008401,101660.0,101650.0,0.1765155]
[1734191934917,0.71228251,101660.0,101650.0,0.1765155]
[1734191937922,0.88890051,101660.0,101650.0,0.1765155]
[1734191939313,0.88890051,101660.0,101640.0,1.96104034]
[1734191939519,0.61914863,101650.0,101640.0,1.91194082]
[1734191939723,0.67977552,101650.0,101640.0,1.67660498]
[1734191941431,0.31897552,101650.0,101640.0,1.5]
[1734191941619,0.67977552,101650.0,101640.0,1.5]
[1734191942127,0.67977552,101650.0,101640.0,1.67660498]
[1734191942327,0.67977552,101650.0,101640.0,1.5]
[1734191942516,0.68953824,101650.0,101640.0,1.5]
[1734191945231,0.80727586,101650.0,101640.0,1.5]
[1734191949237,0.65969833,101650.0,101640.0,1.5]
[1734191956234,0.68953824,101650.0,101640.0,1.67660498]
[1734191956740,0.48086071,101650.0,101640.0,1.67660498]
[1734191958438,0.12006071,101650.0,101640.0,1.67660498]
[1734191958641,0.48086071,101650.0,101640.0,1.67660498]
[1734191959141,0.12006071,101650.0,101640.0,1.67660498]
[1734191959344,0.48086071,101650.0,101640.0,1.67660498]
[1734191960437,0.62843824,101650.0,101640.0,1.67660498]
[1734191960832,0.62810783,101650.0,101640.0,1.67662023]
[1734191961244,0.62810783,101650.0,101640.0,1.5]
[1734191961839,0.55723312,101650.0,101640.0,1.67666168]
[1734191962039,0.55723312,101650.0,101640.0,1.72585268]
[1734191962244,0.61834511,101650.0,101640.0,1.72585268]
[1734191963238,0.79504165,101650.0,101640.0,1.72585268]
[1734191964339,0.64779453,101650.0,101640.0,1.96134632]
[1734191967437,0.64779453,101650.0,101640.0,2.02245831]
[1734191967642,0.64779453,101650.0,101640.0,2.08595831]
[1734191967839,0.64779453,101650.0,101640.0,1.90929663]
[1734191967840,0.79532075,101650.0,101640.0,1.90929663]
[1734191969242,0.61862421,101650.0,101640.0,1.90929663]
[1734191969440,0.79532075,101650.0,101640.0,2.44351402]
[1734191969846,0.79532075,101650.0,101640.0,2.20366369]
[1734191970147,0.79532075,101650.0,101640.0,2.44356033]
[1734191970942,0.79532075,101650.0,101640.0,2.38244834]
[1734191971539,0.79532075,101650.0,101640.0,2.1425517]
[1734191971745,0.79532075,101650.0,101640.0,2.38243965]
[1734191972747,0.79532075,101650.0,101640.0,2.1425517]
[1734191973052,0.79532075,101650.0,101640.0,2.38248447]
[1734191973348,0.79532075,101650.0,101640.0,2.1425517]
[1734191974242,0.61862421,101650.0,101640.0,2.1425517]
[1734191974653,0.61862421,101650.0,101640.0,1.84818464]
[1734191978553,0.61862421,101650.0,101640.0,1.78468464]
[1734191979046,0.79532075,101650.0,101640.0,1.96157056]
[1734191979757,0.64779453,101650.0,101640.0,1.96157056]
[1734191981753,0.79529677,101650.0,101640.0,1.78468464]
[1734191981946,0.64779453,101650.0,101640.0,1.9615676]
[1734191982146,0.79529833,101650.0,101640.0,1.96156975]
[1734191982345,0.79529833,101650.0,101640.0,1.78468464]
[1734191987052,0.61860179,101650.0,101640.0,1.78468464]
[1734191990854,0.25780179,101650.0,101640.0,2.0836275]
[1734191991155,0.25780179,101650.0,101640.0,2.31943327]
[1734191991661,0.25780179,101650.0,101640.0,2.44442651]
[1734191992561,0.25780179,101650.0,101640.0,2.08362651]
[1734191993160,0.25780179,101650.0,101640.0,2.07936714]
[1734191993957,0.25780179,101650.0,101640.0,1.78500008]
[1734191994157,0.25780179,101650.0,101640.0,2.07936714]
[1734191995050,0.25780179,101650.0,101640.0,1.78500008]
[1734191997656,0.25780179,101650.0,101640.0,2.07936714]
[1734191999263,0.25780179,101650.0,101640.0,1.78500008]
[1734191999469,0.61860179,101650.0,101640.0,1.78500008]
[1734192000769,0.58702728,101650.0,101640.0,0.23589776]
[1734192001256,0.64892728,101650.0,101640.0,0.23589776]
[1734192002454,0.64892728,101650.0,101630.0,0.39398981]
[1734192002655,0.3608,101640.0,101630.0,0.39398981]
[1734192003860,0.409991,101640.0,101630.0,0.39398981]
[1734192004958,0.409991,101640.0,101630.0,0.36348981]
[1734192005355,0.409991,101640.0,101630.0,0.35384665]
[1734192005559,0.441891,101640.0,101630.0,0.35384665]
[1734192007359,0.76623918,101640.0,101630.0,0.76644992]
[1734192009670,0.61880819,101640.0,101630.0,0.76644992]
[1734192010464,0.61880819,101640.0,101630.0,0.41260327]
[1734192010961,0.62860534,101640.0,101630.0,0.41260327]
[1734192012268,0.62860534,101640.0,101630.0,0.17682997]
[1734192012469,0.049196,101630.0,101620.0,0.25028471]
[1734192012669,0.67513934,101630.0,101620.0,0.24052997]
[1734192013274,0.67512219,101630.0,101620.0,0.24052997]
[1734192013668,0.55729786,101630.0,101620.0,0.0637]
[1734192015174,0.049201,101620.0,101610.0,0.47161408]
[1734192015468,0.52780285,101620.0,101610.0,0.18663778]
[1734192017679,0.52780285,101620.0,101610.0,0.23584278]
[1734192017970,0.16700285,101620.0,101610.0,0.23584278]
[1734192018174,0.52780285,101620.0,101610.0,0.23584278]
[1734192019366,0.52780285,101620.0,101610.0,0.18663778]
[1734192020166,0.52780285,101620.0,101610.0,0.00980781]
[1734192021673,0.52780285,101620.0,101610.0,0.23584278]
[1734192022676,0.16700285,101620.0,101610.0,0.23584278]
[1734192022873,0.11780185,101620.0,101610.0,0.59664278]
[1734192023072,0.19649886,101630.0,101620.0,0.049201]
[1734192023073,0.11780185,101630.0,101620.0,0.049201]
[1734192023276,0.11780185,101630.0,101620.0,0.079901]
[1734192023573,0.11780185,101630.0,101620.0,0.471901]
[1734192023785,0.11780185,101630.0,101620.0,0.68163097]
[1734192023968,0.19649586,101640.0,101630.0,0.049196]
[1734192023969,0.16699585,101640.0,101630.0,0.049196]
[1734192024275,0.16699585,101640.0,101630.0,0.22602597]
[1734192024479,0.11780185,101640.0,101630.0,0.22602597]
[1734192024668,0.31429271,101650.0,101630.0,0.58682597]
[1734192024870,0.11780185,101650.0,101640.0,0.141291]
[1734192025063,0.11780185,101650.0,101640.0,0.31812097]
[1734192025274,0.16698785,101650.0,101640.0,0.31812097]
[1734192025476,0.11780185,101650.0,101640.0,0.67892097]
[1734192025870,0.31428571,101660.0,101640.0,0.67892097]
[1734192026072,0.31428571,101660.0,101650.0,0.049186]
[1734192026267,0.16698385,101660.0,101650.0,0.049186]
[1734192026469,0.16698385,101660.0,101650.0,0.22601597]
[1734192027487,0.16698385,101660.0,101650.0,0.049186]
[1734192027675,0.16698385,101660.0,101650.0,0.22601597]
[1734192028980,0.16698385,101660.0,101650.0,0.58681597]
[1734192029174,0.28895611,101660.0,101650.0,0.22601597]
[1734192029378,0.17115426,101660.0,101650.0,0.22601597]
[1734192029573,0.28895611,101660.0,101650.0,0.58681597]
[1734192029771,0.17115426,101660.0,101650.0,0.58681597]
[1734192030173,0.11016813,101660.0,101650.0,0.58681597]
[1734192030579,0.11016813,101660.0,101650.0,0.22601597]
[1734192030777,0.11016813,101660.0,101650.0,0.23563621]
[1734192032678,0.11016813,101660.0,101650.0,0.05880624]
[1734192034679,0.52777885,101670.0,101660.0,0.049181]
[1734192034880,0.58876498,101670.0,101660.0,0.049181]
[1734192035383,0.64975111,101670.0,101660.0,0.049181]
[1734192039283,0.58876498,101670.0,101660.0,0.049181]
[1734192039486,0.67681952,101670.0,101660.0,0.049181]